bitfinex-derivatives/quotes_ETHF0:USTF0_20260102
["timestamp","ask_amount","ask_price","bid_price","bid_amount"]
[1767366142711,0.00378881,3089.3,3088.0,2.94024402]
[1767366143520,0.00378881,3089.3,3088.2,2.93538556]
[1767366143712,0.00485846,3089.1,3088.2,2.93538556]
[1767366144528,0.00485846,3089.1,3088.0,0.00485846]
[1767366144529,0.162,3089.0,3088.0,0.00485846]
[1767366144824,0.16570674,3089.0,3088.0,0.00485846]
[1767366147124,0.00370674,3089.0,3088.0,2.96234879]
[1767366148427,0.16194,3090.1,3088.0,2.96234879]
[1767366148624,0.84243224,3090.0,3088.0,2.96234879]
[1767366148931,0.84243224,3089.9,3088.0,2.96234879]
[1767366149125,0.84243224,3089.8,3088.0,2.96234879]
[1767366149426,0.00485846,3089.2,3088.0,0.00485846]
[1767366151226,0.00485846,3089.2,3088.0,2.96234879]
[1767366151422,0.00485846,3089.2,3087.8,1.4966]
[1767366151727,0.00485846,3089.2,3087.8,4.45409033]
[1767366151922,0.00485846,3089.2,3087.9,2.95749033]
[1767366152521,0.00485846,3089.2,3088.2,0.00485846]
[1767366154726,0.16684846,3089.2,3088.2,0.00485846]
[1767366156120,0.00485846,3089.2,3088.2,0.00485846]
[1767366156927,0.00485846,3089.2,3088.2,2.96234879]
[1767366158034,0.00485846,3089.2,3088.2,0.00485846]
[1767366158231,0.16199,3089.1,3088.2,0.00485846]
[1767366158738,0.162,3089.0,3087.8,1.4966]
[1767366159737,0.162,3089.0,3088.1,0.00485846]
[1767366159940,0.00485846,3089.2,3087.8,1.4966]
[1767366160139,0.16201,3088.7,3087.4,0.00397188]
[1767366160540,0.16201,3088.7,3087.5,1.4966]
[1767366160834,0.16201,3088.7,3087.7,1.4966]
[1767366161036,1.25130812,3089.2,3087.9,0.00485846]
[1767366161439,0.16684846,3089.2,3088.0,1.4966]
[1767366162437,0.00485846,3089.2,3088.3,1.4966]
[1767366164433,0.16197,3089.6,3088.3,4.45409033]
[1767366164636,0.16197,3089.6,3088.6,1.4966]
[1767366165435,0.00485846,3089.4,3088.6,1.4966]
[1767366165633,0.00485846,3089.4,3087.9,0.00485846]
[1767366165939,0.00485846,3089.4,3088.5,1.4966]
[1767366167140,1.24644966,3089.3,3087.9,0.00485846]
[1767366167332,1.24644966,3089.3,3087.1,2.95749033]
[1767366167333,0.16203,3088.5,3087.1,2.95749033]
[1767366167735,0.16203,3088.5,3087.7,0.00485846]
[1767366168442,0.16203,3088.5,3087.8,0.00485846]
[1767366168642,0.16199,3089.1,3088.0,0.00485846]
[1767366168839,0.162,3089.0,3087.8,0.00485846]
[1767366169036,0.00485846,3089.4,3088.0,2.96234879]
[1767366169235,0.00286375,3089.8,3088.0,2.96234879]
[1767366169431,0.00286375,3089.8,3088.2,2.95749033]
[1767366169834,0.00286375,3089.8,3088.4,2.95749033]
[1767366170442,0.16191,3090.6,3088.6,2.95749033]
[1767366170649,0.16191,3090.6,3088.8,2.95749033]
[1767366170838,0.16192,3090.5,3088.8,2.95749033]
[1767366171138,0.16192,3090.5,3088.8,2.96234879]
[1767366171349,0.00485846,3090.0,3089.3,0.00485846]
[1767366172633,0.00485846,3090.0,3088.8,2.95749033]
[1767366172840,0.00485846,3090.0,3088.9,0.00485846]
[1767366173240,0.00485846,3090.0,3088.8,2.95749033]
[1767366173439,0.00485846,3090.0,3088.8,2.96234879]
[1767366173744,0.00485846,3090.0,3089.1,0.00485846]
[1767366174740,1.24644966,3089.2,3088.3,1.447]
[1767366174939,1.24644966,3089.2,3087.5,2.95749033]
[1767366175438,0.162,3088.9,3087.5,2.95749033]
[1767366175637,1.24644966,3089.3,3087.9,0.00485846]
[1767366175836,7.616,3089.2,3087.9,0.00485846]
[1767366176648,0.16201,3088.7,3087.9,0.00485846]
[1767366177441,0.16203,3088.4,3086.9,3.08060404]
[1767366177947,0.16203,3088.4,3087.5,0.00485846]
[1767366178452,0.00485846,3088.3,3087.6,0.00485846]
[1767366178641,0.00775581,3088.3,3087.6,0.00485846]
[1767366178941,0.16205,3088.0,3086.9,0.135]
[1767366179340,0.16205,3088.0,3087.0,0.00485846]
[1767366179543,0.16205,3088.0,3086.9,0.135]
[1767366179849,0.16206,3087.9,3086.9,0.135]
[1767366180048,2.91842452,3088.3,3086.9,0.13818793]
[1767366180248,0.1621,3087.1,3085.3,3.08060404]
[1767366180550,0.00485846,3086.5,3085.3,3.08060404]
[1767366181148,0.16698846,3086.5,3085.3,0.0027112]
[1767366181340,0.16698846,3086.5,3085.3,3.08331524]
[1767366183049,0.16698846,3086.5,3085.7,0.00485846]
[1767366183553,0.16698846,3086.5,3085.3,0.0027112]
[1767366183851,0.00485846,3086.5,3085.4,0.00485846]
[1767366184151,0.00485846,3086.5,3085.4,3.0854625]
[1767366184352,0.00485846,3086.5,3085.3,0.0027112]
[1767366184543,0.00485846,3086.5,3085.5,0.00485846]
[1767366185150,0.00485846,3086.5,3085.3,0.0027112]
[1767366185349,0.16698846,3086.5,3085.3,0.0027112]
[1767366185545,0.16698846,3086.5,3085.4,0.00485846]
[1767366185753,4.54598846,3086.5,3085.4,0.00485846]
[1767366186640,4.54598846,3086.5,3085.3,0.0027112]
[1767366186846,4.54698846,3086.5,3085.5,0.00485846]
[1767366187241,0.16698846,3086.5,3085.3,0.0027112]
[1767366187443,0.00485846,3086.5,3085.6,3.0854625]
[1767366189152,3.248,3088.5,3085.6,3.0854625]
[1767366189153,4.54206,3087.8,3085.7,3.08060404]
[1767366189354,0.16207,3087.7,3085.7,3.0854625]
[1767366189948,0.16208,3087.4,3085.7,3.0854625]
[1767366190251,0.00485846,3087.0,3086.4,0.00485846]
[1767366190856,0.00485846,3087.0,3086.4,0.00971692]
[1767366191352,0.00485846,3087.0,3086.4,0.00485846]
[1767366191547,0.00485846,3087.0,3086.4,0.00971692]
[1767366191851,0.16695846,3087.0,3085.7,3.08060404]
[1767366192154,0.16211,3086.9,3085.8,0.00485846]
[1767366192354,0.16212,3086.8,3085.8,0.00485846]
[1767366192752,0.00485846,3087.0,3085.3,0.0027112]
[1767366192753,0.16213,3086.6,3085.3,0.0027112]
[1767366192949,0.00485846,3087.0,3085.6,3.08060404]
[1767366193753,0.16695846,3087.0,3085.8,0.00485846]
[1767366194060,0.16211,3086.9,3085.8,0.00485846]
[1767366194354,0.16211,3086.8,3085.6,3.08060404]
[1767366194550,0.16211,3086.8,3085.8,0.00485846]
[1767366194861,0.16215,3086.1,3085.0,43.192]
[1767366195149,0.16213,3086.5,3085.1,3.08060404]
[1767366195746,0.16215,3086.2,3085.0,43.192]
[1767366195946,0.16215,3086.1,3085.0,43.19456146]
[1767366196152,0.00264751,3086.2,3085.0,14.77440131]
[1767366196153,8.91331622,3086.2,3085.0,14.77440131]
[1767366196458,0.16221,3085.1,3083.7,3.08060404]
[1767366196659,0.00485846,3084.7,3083.7,3.08060404]
[1767366196846,0.16223,3084.6,3083.7,3.08060404]
[1767366197546,0.16223,3084.6,3083.7,3.08443098]
[1767366197866,0.00485846,3084.5,3083.9,8.10240847]
[1767366198852,0.16709846,3084.5,3083.8,0.00485846]
[1767366199058,0.00485846,3084.5,3083.8,8.46e-06]
[1767366199259,6.00485846,3084.5,3081.5,1.1802161]
[1767366199450,0.16227,3083.9,3082.6,3.08060404]
[1767366199862,0.00485846,3084.5,3082.6,3.08060404]
[1767366200053,0.00485846,3084.5,3082.8,3.08060404]
[1767366200253,0.00899363,3084.5,3082.8,3.08060404]
[1767366201156,0.00899363,3084.5,3082.9,4.19070245]
[1767366201359,0.00899363,3084.5,3083.0,7.70860404]
[1767366201555,0.00899363,3084.5,3083.1,3.08060404]
[1767366201964,2.8,3085.3,3083.1,3.08060404]
[1767366202155,0.16219,3085.4,3083.1,3.08060404]
[1767366202461,0.16219,3085.4,3083.3,3.08060404]
[1767366202859,0.16219,3085.4,3083.5,3.08060404]
[1767366203055,0.00485846,3084.8,3084.1,0.00485846]
[1767366203457,0.00485846,3084.8,3083.4,3.08060404]
[1767366203655,0.16223,3084.6,3083.4,3.08060404]
[1767366204054,0.16223,3084.6,3083.5,3.08060404]
[1767366204764,0.16223,3084.6,3083.7,11.18301251]
[1767366205067,0.00485846,3084.8,3083.8,3.08060404]
[1767366205265,0.00485846,3084.8,3083.9,8.10240847]
[1767366205561,0.00485846,3084.8,3084.0,3.08060404]
[1767366205868,0.00349456,3085.4,3084.0,3.08060404]
[1767366206765,0.747,3086.1,3084.5,3.3260642]
[1767366206961,0.16218,3085.6,3084.5,3.3260642]
[1767366207466,0.16218,3085.6,3084.5,11.42847267]
[1767366207764,0.00485846,3085.4,3084.5,11.43097476]
[1767366207965,0.00485846,3085.4,3084.6,3.3260642]
[1767366209052,0.16219,3085.3,3084.5,0.00250209]
[1767366209865,0.1622,3085.1,3084.5,0.00250209]
[1767366210261,0.16221,3085.0,3084.5,0.00250209]
[1767366210463,0.00485846,3085.4,3084.0,3.3260642]
[1767366210766,3.248,3085.0,3082.5,3.3260642]
[1767366210958,0.16228,3083.7,3081.2,3.37]
[1767366211266,0.16228,3083.6,3081.2,3.37]
[1767366211462,2.818,3083.9,3081.7,0.46619763]
[1767366211658,0.00485846,3083.0,3082.3,0.00485846]
[1767366211859,0.00729384,3083.0,3082.3,0.00485846]
[1767366212056,0.16228,3083.7,3082.3,8.10726693]
[1767366212359,0.16228,3083.7,3082.3,0.00485846]
[1767366212559,0.16228,3083.7,3080.0,2.81198697]
[1767366212560,0.16233,3082.7,3079.6,1.068]
[1767366212760,0.16233,3082.7,3079.3,3.63174331]
[1767366212761,3.36709814,3083.6,3080.1,0.16246]
[1767366212969,3.36709814,3083.4,3079.9,3.3260642]
[1767366213153,7.97788867,3083.5,3079.9,3.3260642]
[1767366213154,0.16236,3082.1,3079.9,3.3260642]
[1767366213357,0.16237,3082.0,3079.9,3.3260642]
[1767366213561,0.00486656,3081.3,3080.6,0.00486656]
[1767366213965,0.00486656,3081.3,3079.9,0.00291942]
[1767366214162,0.00486656,3081.3,3080.0,8.5686061]
[1767366214462,0.00486656,3081.3,3079.9,0.00291942]
[1767366214872,7.628,3081.2,3079.9,0.00291942]
[1767366215161,0.84059769,3081.1,3078.8,3.3260642]
[1767366215359,0.00486656,3080.3,3078.8,3.3260642]
[1767366215554,0.00486656,3080.3,3078.9,11.8946703]
[1767366215965,0.00486656,3080.3,3079.0,3.3260642]
[1767366216767,1e-08,3080.3,3079.0,3.3260642]
[1767366217159,3.40738,3081.8,3079.2,3.3260642]
[1767366217366,3.245,3081.8,3079.9,3.3260642]
[1767366218073,0.00486656,3081.2,3080.5,3.33093076]
[1767366218770,0.00486656,3081.2,3080.7,8.5686061]
[1767366219158,0.16621341,3082.0,3080.7,11.8946703]
[1767366219672,0.16621341,3082.0,3080.8,3.3260642]
[1767366220164,0.00486656,3081.7,3080.8,3.3260642]
[1767366220671,0.00486656,3081.7,3080.9,8.5686061]
[1767366220965,0.00486656,3081.7,3080.6,8.5686061]
[1767366221770,1e-08,3081.7,3080.7,3.3260642]
[1767366222567,1e-08,3081.7,3080.5,0.00486656]
[1767366222870,1e-08,3081.7,3080.7,8.5686061]
[1767366223073,1e-08,3081.7,3080.5,0.00486656]
[1767366223074,0.16239,3081.5,3080.5,0.00486656]
[1767366223272,0.1624,3081.4,3080.5,0.00486656]
[1767366223471,0.16241,3081.2,3080.5,6.56e-06]
[1767366223772,0.16243,3080.8,3078.9,3.32939865]
[1767366223967,0.16243,3080.8,3079.2,3.3260642]
[1767366224175,3.247,3081.2,3079.2,3.3260642]
[1767366224565,0.00486656,3080.5,3079.9,0.00486656]
[1767366224870,0.00486656,3080.5,3078.9,3.32939865]
[1767366225066,0.00486656,3080.5,3079.3,8.5686061]
[1767366225371,0.1624,3081.4,3079.4,3.3260642]
[1767366225568,3.247,3081.9,3081.5,2.80807126]
[1767366225774,3.40937,3081.9,3081.5,1.99303899]
[1767366226075,3.40937,3081.9,3081.5,1.65697899]
[1767366226076,0.16237,3081.9,3081.5,1.65697899]
[1767366226260,0.16237,3081.9,3081.5,1.29412899]
[1767366226467,0.16234,3082.6,3081.5,13.18879929]
[1767366226666,0.16235,3082.2,3081.5,1.29412899]
[1767366226972,0.16235,3082.2,3081.4,1e-08]
[1767366227975,0.16237,3081.9,3081.4,1e-08]
[1767366228274,0.00486656,3082.1,3080.2,3.3260642]
[1767366228275,4.388,3082.0,3080.2,3.3260642]
[1767366228468,4.388,3082.0,3079.6,3.3260642]
[1767366228669,0.1624,3081.3,3079.8,3.3260642]
[1767366228967,0.1624,3081.3,3080.2,0.00486656]
[1767366229165,7.636,3082.0,3080.2,0.00773344]
[1767366229365,7.636,3082.0,3080.2,3.44e-06]
[1767366229366,0.16245,3080.5,3080.2,3.44e-06]
[1767366229565,0.16245,3080.5,3079.2,3.3260642]
[1767366229771,0.16245,3080.5,3079.6,8.5686061]
[1767366229966,4.388,3080.7,3079.6,8.2183461]
[1767366230173,4.08671613,3080.6,3077.6,3.3260642]
[1767366230375,0.00486656,3079.4,3078.8,0.00486656]
[1767366230569,0.00788786,3079.4,3078.8,0.00486656]
[1767366230970,0.16248,3079.9,3078.8,3.33093076]
[1767366231566,7.638,3080.5,3078.8,0.00486656]
[1767366231764,0.16251,3079.3,3078.8,6.56e-06]
[1767366231971,0.16252,3079.2,3077.6,3.3299681]
[1767366232172,0.00368819,3079.3,3078.3,3.3260642]
[1767366232775,0.16245,3080.5,3078.3,3.3260642]
[1767366232975,4.55245,3080.5,3079.1,0.00486656]
[1767366233370,4.39,3080.5,3079.1,0.00486656]
[1767366233766,0.83828669,3080.4,3078.4,3.3260642]
[1767366233971,0.16249,3079.8,3078.4,3.3260642]
[1767366234272,4.39375833,3080.5,3078.4,3.3260642]
[1767366234474,0.16251,3079.4,3077.2,0.16261]
[1767366234673,0.16251,3079.3,3077.6,3.3299681]
[1767366234975,1e-08,3078.8,3078.2,3.33093076]
[1767366235380,3.674,3079.8,3078.2,3.33093076]
[1767366235573,0.16248,3079.8,3078.8,7.85216609]
[1767366235974,0.16619833,3080.5,3078.9,3.3260642]
[1767366236174,0.16245,3080.4,3078.9,3.3260642]
[1767366236478,0.00375833,3080.5,3078.9,3.3260642]
[1767366237577,0.00486656,3080.0,3078.9,3.3260642]
[1767366237876,0.16245,3080.4,3078.9,3.3260642]
[1767366238073,0.00375833,3080.5,3078.3,3.30078046]
[1767366238378,0.16249,3079.6,3078.8,7.85216609]
[1767366238579,0.16249,3079.6,3078.3,3.30078046]
[1767366238778,0.00486656,3079.3,3078.7,7.85216609]
[1767366238979,0.16737656,3079.3,3078.7,7.85216609]
[1767366239871,0.16737656,3079.3,3078.2,3.30564702]
[1767366239872,0.84299393,3079.2,3078.2,0.00486656]
[1767366240071,0.16253,3078.9,3078.2,1e-08]
[1767366240273,0.16254,3078.8,3077.6,3.30468436]
[1767366240470,1.72702482,3080.1,3077.9,3.30078046]
[1767366240681,0.16248,3079.9,3078.9,7.85216609]
[1767366240884,0.16251,3079.4,3077.8,3.30078046]
[1767366241177,4.20706382,3079.3,3077.6,0.0039039]
[1767366241385,0.84466795,3079.2,3077.6,7.85606999]
[1767366241684,0.00486656,3078.7,3078.1,0.00486656]
[1767366242077,0.00486656,3078.7,3078.3,7.85216609]
[1767366242378,1.72702482,3078.5,3075.0,0.16273]
[1767366242580,1.72702482,3078.5,3074.2,3.248]
[1767366242581,0.16263,3077.1,3074.7,1.43704689]
[1767366242778,0.84474044,3077.0,3074.8,1.04904689]
[1767366242969,0.84474044,3077.0,3074.8,5.26365767]
[1767366243174,0.84474044,3077.0,3074.8,1.04904689]
[1767366243372,0.00267708,3077.0,3074.9,4.4716557]
[1767366243572,0.00267708,3077.0,3075.6,0.00487496]
[1767366243782,0.00267708,3077.0,3076.4,1.04904689]
[1767366243986,0.16265,3076.7,3075.6,0.00487496]
[1767366244278,0.16268,3076.1,3074.8,0.00358724]
[1767366244481,7.642,3076.0,3074.8,0.00358724]
[1767366244672,7.642,3076.0,3073.8,3.30078046]
[1767366244673,4.09324366,3075.9,3073.8,3.30078046]
[1767366244878,0.84324366,3075.8,3073.8,3.30078046]
[1767366245078,8.48524366,3075.7,3073.8,3.30078046]
[1767366245281,8.48524366,3075.7,3072.7,3.30078046]
[1767366245282,0.00487496,3075.1,3072.7,3.30078046]
[1767366245475,3.52515587,3074.5,3070.9,0.16295]
[1767366245676,4.20563953,3074.4,3070.9,0.16597467]
[1767366245882,4.09324366,3074.3,3070.9,0.16597467]
[1767366246088,4.20563953,3074.2,3070.9,0.00302467]
[1767366246283,3.36239587,3073.6,3070.9,0.00302467]
[1767366246486,0.00487496,3072.9,3072.2,0.00487496]
[1767366246777,0.00336857,3074.5,3072.2,0.00487496]
[1767366247580,0.00336857,3074.5,3072.3,3.30078046]
[1767366248082,0.00487496,3073.7,3072.3,3.30078046]
[1767366248273,3.251,3073.6,3072.2,0.00487496]
[1767366248474,0.00487496,3073.7,3072.2,0.00487496]
[1767366248681,0.00487496,3073.7,3072.3,3.30078046]
[1767366249075,0.00336857,3074.5,3072.5,3.30078046]
[1767366249985,42.47878058,3076.0,3072.7,3.30078046]
[1767366249986,3.41468,3075.9,3072.7,3.30078046]
[1767366250181,0.00487496,3074.5,3073.9,0.00487496]
[1767366250394,4.395,3074.4,3072.8,4.2380654]
[1767366250585,0.00487496,3074.5,3072.9,3.30078046]
[1767366250979,0.00272552,3074.5,3073.0,3.30078046]
[1767366251185,0.16265,3076.5,3073.1,3.30078046]
[1767366251383,0.16265,3076.5,3073.4,3.46359046]
[1767366251575,6.61439587,3076.9,3073.4,3.46359046]
[1767366251873,0.00487496,3075.5,3074.8,0.00487496]
[1767366252078,0.00839254,3075.5,3074.8,0.00487496]
[1767366252476,0.16267,3076.1,3074.8,0.00487496]
[1767366253589,0.00487496,3075.8,3074.8,0.00487496]
[1767366253783,0.16623518,3076.1,3074.8,0.00487496]
[1767366253784,0.00356518,3076.1,3074.8,3.30565542]
[1767366253986,3.41563,3077.1,3074.8,3.30565542]
[1767366254182,0.16263,3077.1,3075.0,3.30078046]
[1767366254681,0.00321707,3076.4,3075.0,3.30078046]
[1767366254877,0.16263,3077.1,3075.1,7.50031238]
[1767366255088,0.16569176,3077.1,3075.2,3.30078046]
[1767366256683,0.00306176,3077.1,3075.2,3.30078046]
[1767366257685,5.04423821,3077.1,3075.1,0.00322894]
[1767366257896,0.16265,3076.7,3075.1,0.00322894]
[1767366258190,0.00306176,3077.1,3075.1,3.3040094]
[1767366258384,0.00306176,3077.1,3075.3,3.30078046]
[1767366258684,3.36239587,3078.8,3075.8,3.30078046]
[1767366258886,3.36239587,3078.8,3075.4,4.14908776]
[1767366258887,3.52492587,3078.8,3077.0,0.00487496]
[1767366259485,0.16629742,3078.8,3077.0,3.30565542]
[1767366260489,0.00376742,3078.8,3077.0,3.30565542]
[1767366261095,3.36239587,3080.6,3077.2,3.30078046]
[1767366261393,0.16249,3079.6,3078.6,0.00487496]
[1767366261591,3.36239587,3080.4,3078.6,0.00487496]
[1767366262291,3.36239587,3080.2,3078.6,0.0087541]
[1767366262596,0.16248,3079.7,3078.6,0.0087541]
[1767366262896,3.36239587,3080.2,3078.6,0.0087541]
[1767366263192,4.19792486,3080.1,3078.6,0.0087541]
[1767366263394,3.36239587,3080.1,3078.6,0.0087541]
[1767366263592,0.16246,3080.1,3078.6,0.0087541]
[1767366263792,0.00363388,3080.4,3078.9,3.30078046]
[1767366263990,0.16241,3081.1,3078.9,11.22178046]
[1767366264296,0.16241,3081.1,3079.0,3.30078046]
[1767366264496,3.36239587,3081.6,3079.0,3.30078046]
[1767366264685,3.36239587,3081.4,3078.6,0.0087541]
[1767366264890,0.16247,3080.0,3078.6,0.0087541]
[1767366265091,0.16246,3079.9,3078.6,0.0087541]
[1767366265492,0.16246,3079.9,3078.6,3.30953456]
[1767366265784,7.80842,3080.7,3078.6,3.30953456]
[1767366266193,7.646,3080.7,3078.6,3.30953456]
[1767366266596,0.16245,3080.1,3078.6,3.30953456]
[1767366266897,7.646,3080.7,3078.8,3.40530245]
[1767366267293,0.16245,3080.2,3078.6,0.0087541]
[1767366267893,0.16245,3080.1,3078.6,0.0087541]
[1767366268089,3.59920104,3080.6,3078.6,0.0087541]
[1767366269095,3.59920104,3079.8,3078.6,0.0087541]
[1767366269302,0.16251,3079.0,3077.0,3.40530245]
[1767366269497,0.16251,3078.9,3077.0,3.40530245]
[1767366269800,4.395,3079.2,3077.0,3.40530245]
[1767366269996,0.16252,3078.7,3077.0,3.40530245]
[1767366270501,0.00487496,3078.2,3077.5,0.00487496]
[1767366271502,0.16635883,3078.7,3077.5,0.00487496]
[1767366272504,0.00383883,3078.7,3077.5,0.00487496]
[1767366272699,0.16255,3078.3,3077.5,0.00487496]
[1767366273205,0.00383883,3078.7,3077.5,0.00487496]
[1767366273498,0.16635883,3078.7,3077.5,0.00487496]
[1767366273703,0.16253,3078.5,3077.5,0.00487496]
[1767366273901,0.00383883,3078.7,3077.5,0.00487496]
[1767366274305,0.16255,3078.2,3077.5,0.00487496]
[1767366274899,0.00383883,3078.7,3077.5,0.00487496]
[1767366275199,0.16256,3078.0,3077.5,0.00487496]
[1767366277407,0.16253,3078.6,3077.5,0.00487496]
[1767366278110,0.16256,3078.1,3077.5,0.00487496]
[1767366278406,0.16256,3078.0,3077.5,0.00487496]
[1767366278606,0.16256,3078.0,3077.0,0.00227529]
[1767366279201,0.16257,3077.8,3077.0,0.00227529]
[1767366279609,0.00487496,3077.7,3077.1,0.00487496]
[1767366280599,0.16745496,3077.7,3075.7,3.53677961]
[1767366280800,0.16259,3077.5,3075.7,3.53677961]
[1767366281412,0.16262,3077.0,3075.2,3.53677961]
[1767366281707,0.16255,3078.1,3075.8,3.54165457]
[1767366281907,0.16635883,3078.7,3076.4,3.53677961]
[1767366282305,0.16635883,3078.7,3076.3,3.251]
[1767366282306,0.16635883,3078.7,3076.6,3.53677961]
[1767366282611,0.16635883,3078.7,3076.8,3.53677961]
[1767366282815,0.00487496,3078.1,3077.4,0.00487496]
[1767366283009,0.16249,3079.3,3077.4,3.54452694]
[1767366283306,0.16249,3079.3,3077.6,3.53677961]
[1767366283702,0.16249,3079.3,3077.7,7.72809881]
[1767366283903,3.40484391,3080.2,3077.7,7.72809881]
[1767366284205,0.16249,3079.3,3077.4,3.54452694]
[1767366284612,0.16249,3079.3,3077.6,3.53677961]
[1767366285004,0.16249,3079.3,3077.8,3.53677961]
[1767366285405,0.1625,3079.2,3077.8,3.53677961]
[1767366286214,0.1625,3079.2,3077.4,0.00774733]
[1767366286414,0.1625,3079.1,3077.4,0.00774733]
[1767366286706,0.1625,3079.1,3077.4,3.54452694]
[1767366286902,3.40484391,3079.6,3077.4,3.54452694]
[1767366286903,0.16251,3079.0,3077.4,3.54452694]
[1767366288010,0.16252,3078.8,3077.4,0.00774733]
[1767366288209,0.16254,3078.4,3077.4,0.00774733]
[1767366290114,0.16255,3078.2,3077.4,0.00774733]
[1767366290317,0.16255,3078.2,3077.4,0.00276591]
[1767366291214,0.00487496,3078.1,3077.5,0.00487496]
[1767366291707,3.40484391,3077.0,3074.1,3.53677961]
[1767366291912,3.40484391,3076.8,3074.4,3.53677961]
[1767366292214,3.40484391,3076.6,3074.4,3.53677961]
[1767366292413,0.16265,3076.3,3074.4,3.53677961]
[1767366292609,11.04784391,3076.5,3074.4,3.53677961]
[1767366292809,3.40971887,3075.8,3073.3,3.53677961]
[1767366293016,7.516,3075.7,3073.3,3.53677961]
[1767366293715,3.40971887,3075.8,3073.5,3.53677961]
[1767366293923,4.393,3075.7,3074.3,0.00487496]
[1767366294614,0.00487496,3075.8,3074.3,0.00487496]
[1767366294821,0.00487496,3075.8,3074.3,3.54165457]
[1767366295124,0.16755496,3075.8,3074.3,3.54165457]
[1767366295423,0.00487496,3075.8,3074.3,3.54165457]
[1767366297420,0.00487496,3075.8,3074.5,3.80858816]
[1767366297808,0.16265,3076.4,3074.5,3.80858816]
[1767366298015,0.00306092,3076.5,3074.7,3.80858816]
[1767366298522,0.16266,3076.2,3074.7,3.80858816]
[1767366298913,0.00487496,3075.8,3074.7,3.80858816]
[1767366299113,0.00306092,3076.5,3074.7,3.80858816]
[1767366299520,0.00306092,3076.5,3074.8,4.13694083]
[1767366299718,3.62638335,3078.4,3075.6,3.80858816]
[1767366299923,0.16257,3077.9,3076.0,3.81358816]
[1767366300111,0.00487496,3077.3,3076.6,0.00487496]
[1767366300818,0.16257,3077.8,3076.6,0.0081914]
[1767366301819,0.16646974,3077.8,3076.6,0.0081914]
[1767366302222,0.16258,3077.7,3076.6,0.0081914]
[1767366302422,0.16258,3077.6,3076.6,0.0081914]
[1767366302725,0.16259,3077.5,3076.6,0.0081914]
[1767366303822,0.00389974,3077.8,3076.6,0.0081914]
[1767366304017,0.00389974,3077.8,3076.6,3.81677956]
[1767366304531,0.00389974,3077.8,3076.6,0.0081914]
[1767366305228,0.1626,3077.2,3076.6,0.0081914]
[1767366305526,3.62638335,3077.7,3076.0,0.005]
[1767366305723,3.78896335,3077.7,3076.0,0.005]
[1767366305924,0.16259,3077.5,3076.0,0.005]
[1767366306121,3.62638335,3077.2,3076.0,0.005]
[1767366306324,0.16262,3077.0,3074.8,3.80858816]
[1767366306631,0.00487496,3076.2,3075.6,0.00487496]
[1767366307034,0.00487496,3076.2,3074.8,3.81087216]
[1767366307828,0.00487496,3076.2,3074.8,0.002284]
[1767366308240,0.00487496,3076.2,3075.2,0.00487496]
[1767366308735,0.16753496,3076.2,3075.2,0.00487496]
[1767366309334,0.00487496,3076.2,3075.2,0.00487496]
[1767366309729,0.16262,3076.8,3075.2,3.81346312]
[1767366310439,0.16259,3077.4,3075.2,3.81346312]
[1767366310642,0.00487496,3076.6,3075.4,3.80858816]
[1767366310842,4.39789974,3077.8,3075.4,3.80858816]
[1767366311036,4.39789974,3077.8,3075.6,3.97127816]
[1767366311037,0.00389974,3077.8,3075.6,3.97127816]
[1767366311438,0.16646974,3077.8,3075.8,3.80858816]
[1767366311836,0.16259,3077.5,3075.8,3.80858816]
[1767366312242,0.00389974,3077.8,3076.0,3.80858816]
[1767366312636,0.16252,3078.8,3076.7,3.80858816]
[1767366312839,0.16252,3078.8,3077.4,0.00487496]
[1767366313646,0.16671016,3078.8,3077.4,0.0073707]
[1767366314048,0.00419016,3078.8,3077.4,0.0073707]
[1767366314446,0.16253,3078.6,3077.4,0.0073707]
[1767366314643,0.16254,3078.4,3077.4,0.0073707]
[1767366315241,3.62638335,3078.7,3077.4,0.0073707]
[1767366315551,3.62638335,3077.7,3075.4,3.80858816]
[1767366315847,3.62638335,3077.7,3075.5,3.80858816]
[1767366316447,0.00487496,3076.9,3076.3,0.00487496]
[1767366317548,0.00487496,3076.9,3075.5,0.00388042]
[1767366318438,0.00487496,3076.9,3075.5,3.81246858]
[1767366318643,0.00487496,3076.9,3075.9,0.00487496]
[1767366318846,0.16749496,3076.9,3075.9,0.00487496]
[1767366319042,0.00487496,3076.9,3075.9,0.00487496]
[1767366319246,0.16258,3077.7,3075.9,3.81346312]
[1767366319443,3.62638335,3077.9,3075.9,0.00487496]
[1767366319952,3.62638335,3077.9,3075.9,3.81346312]
[1767366320146,0.00487496,3077.2,3075.9,0.00487496]
[1767366320343,0.16747496,3077.2,3075.9,0.00487496]
[1767366321660,0.00487496,3077.2,3075.9,0.00487496]
[1767366322551,0.16262,3077.0,3075.9,0.00487496]
[1767366323658,0.00487496,3077.2,3075.9,0.00487496]
[1767366324853,0.16262,3076.9,3075.9,0.00487496]
[1767366325250,0.16263,3076.8,3075.9,0.00487496]
[1767366325448,3.62638335,3077.1,3075.9,0.00487496]
[1767366325856,3.62638335,3077.1,3075.5,0.00388042]
[1767366326057,3.62638335,3076.6,3074.3,3.252]
[1767366326254,0.16267,3076.0,3074.3,3.252]
[1767366326456,0.16267,3076.0,3074.2,3.45037412]
[1767366326854,0.00487496,3075.4,3074.8,0.00487496]
[1767366327054,0.00897807,3075.4,3074.8,0.00747808]
[1767366327263,0.1627,3075.3,3073.6,3.33106273]
[1767366328552,3.30234658,3074.9,3073.6,0.00360804]
[1767366328856,2.14809658,3074.9,3073.6,0.00360804]
[1767366329262,0.16275,3074.5,3073.6,0.00360804]
[1767366329561,0.16275,3074.5,3073.7,0.00487496]
[1767366330863,0.16275,3074.5,3072.6,6.58306273]
[1767366331052,0.16275,3074.5,3072.7,3.33106273]
[1767366331458,0.16271,3075.3,3073.0,3.33106273]
[1767366331655,0.16271,3075.3,3073.0,6.58406273]
[1767366331855,0.00487496,3074.5,3073.8,0.00487496]
[1767366334960,0.00487496,3074.5,3073.0,3.33413557]
[1767366336058,0.00487496,3074.5,3073.4,0.00324996]
[1767366336862,3.30722154,3074.5,3073.0,0.00307284]
[1767366337053,0.00487496,3074.5,3073.0,0.00307284]
[1767366337258,0.00487496,3074.5,3073.0,3.33413557]
[1767366337858,0.16271,3075.2,3073.2,3.33106273]
[1767366339065,0.00487496,3074.5,3073.9,0.00487496]
[1767366339665,0.16272,3075.1,3073.9,0.00487496]
[1767366339970,0.00410311,3075.4,3073.9,3.33593769]
[1767366340671,0.00487496,3075.0,3073.9,3.33593769]
[1767366341258,0.00487496,3075.0,3073.9,0.00487496]
[1767366341966,0.16759496,3075.0,3073.9,0.00487496]